[Event "Live Chess"]
[Site "Chess.com"]
[Date "2024.06.02"]
[Round "-"]
[White "TheSmoulderingMaster"]
[Black "KnightStripes"]
[Result "1-0"]
[WhiteElo "1761"]
[BlackElo "917"]
[TimeControl "300"]
[EndTime "17:37:43 PDT"]
[Termination "TheSmoulderingMaster won on time"]

1. e4 {[%clk 0:04:57.8]} 1... c6 {[%clk 0:04:57.7]} 2. d4 {[%clk 0:04:56]} 2...
d5 {[%clk 0:04:56.4]} 3. Nc3 {[%clk 0:04:54.8]} 3... dxe4 {[%clk 0:04:54.9]} 4.
Nxe4 {[%clk 0:04:53.6]} 4... Bf5 {[%clk 0:04:46.8]} 5. Ng3 {[%clk 0:04:52.7]}
5... Be6 {[%clk 0:04:43.9]} 6. Nf3 {[%clk 0:04:51.2]} 6... Bd5 {[%clk
0:04:42.5]} 7. c4 {[%clk 0:04:49.5]} 7... Bxf3 {[%clk 0:04:40.9]} 8. gxf3 {[%clk
0:04:48.3]} 8... Nf6 {[%clk 0:04:33.1]} 9. Be3 {[%clk 0:04:46]} 9... e6 {[%clk
0:04:30.9]} 10. Bd3 {[%clk 0:04:43.6]} 10... Bb4+ {[%clk 0:04:29.1]} 11. Ke2
{[%clk 0:04:35.3]} 11... Na6 {[%clk 0:04:14.8]} 12. a3 {[%clk 0:04:34]} 12...
Bd6 {[%clk 0:04:11.1]} 13. Re1 {[%clk 0:04:30.8]} 13... Qb6 {[%clk 0:04:04.5]}
14. Kf1 {[%clk 0:04:26.1]} 14... Qxb2 {[%clk 0:03:40.7]} 15. Rb1 {[%clk
0:04:22.8]} 15... Qxa3 {[%clk 0:03:39.4]} 16. Rxb7 {[%clk 0:04:21.1]} 16... O-O
{[%clk 0:03:28.1]} 17. c5 {[%clk 0:04:19.1]} 17... Bxg3 {[%clk 0:03:24.2]} 18.
hxg3 {[%clk 0:04:18.5]} 18... Nb4 {[%clk 0:03:11.8]} 19. Bc1 {[%clk 0:04:14.4]}
19... Qxd3+ {[%clk 0:03:00.8]} 20. Kg2 {[%clk 0:04:08.4]} 20... Qxd1 {[%clk
0:02:39.2]} 21. Rxd1 {[%clk 0:04:06.2]} 21... Nbd5 {[%clk 0:02:39.1]} 22. Bg5
{[%clk 0:04:02.6]} 22... h6 {[%clk 0:02:36.2]} 23. Bd2 {[%clk 0:03:59.2]} 23...
Rfb8 {[%clk 0:02:30.4]} 24. Rxb8+ {[%clk 0:03:52.9]} 24... Rxb8 {[%clk
0:02:29.3]} 25. Ra1 {[%clk 0:03:52.1]} 25... Ra8 {[%clk 0:02:25.4]} 26. Ba5
{[%clk 0:03:48.7]} 26... Nh7 {[%clk 0:02:03.4]} 27. Bb6 {[%clk 0:03:46.5]} 27...
a6 {[%clk 0:02:01.3]} 28. Ba5 {[%clk 0:03:41.8]} 28... Ne7 {[%clk 0:01:43.2]}
29. f4 {[%clk 0:03:39.7]} 29... Nf5 {[%clk 0:01:41.9]} 30. Bc3 {[%clk
0:03:34.5]} 30... Nf6 {[%clk 0:01:31]} 31. Kf3 {[%clk 0:03:32.9]} 31... Nd5
{[%clk 0:01:21.3]} 32. Bb2 {[%clk 0:03:29.5]} 32... Nb4 {[%clk 0:01:15.3]} 33.
g4 {[%clk 0:03:26.2]} 33... Nd6 {[%clk 0:01:12.6]} 34. cxd6 {[%clk 0:03:23.9]}
34... Rd8 {[%clk 0:01:06.8]} 35. Ba3 {[%clk 0:03:19.7]} 35... Nc2 {[%clk
0:01:04.8]} 36. Ra2 {[%clk 0:03:16.2]} 36... Nxa3 {[%clk 0:01:02.5]} 37. Rxa3
{[%clk 0:03:14.8]} 37... Rxd6 {[%clk 0:01:01.9]} 38. Ke4 {[%clk 0:03:11.9]}
38... f5+ {[%clk 0:00:58.7]} 39. gxf5 {[%clk 0:03:10.3]} 39... exf5+ {[%clk
0:00:57.9]} 40. Ke5 {[%clk 0:03:09.8]} 40... Rf6 {[%clk 0:00:55.2]} 41. Rxa6
{[%clk 0:03:07.3]} 41... h5 {[%clk 0:00:54.2]} 42. Ra1 {[%clk 0:02:56.9]} 42...
h4 {[%clk 0:00:53.1]} 43. Rh1 {[%clk 0:02:55.8]} 43... Rh6 {[%clk 0:00:52.3]}
44. Kxf5 {[%clk 0:02:41.7]} 44... h3 {[%clk 0:00:50.7]} 45. Kg5 {[%clk
0:02:38.2]} 45... Kh7 {[%clk 0:00:47.1]} 46. Kg4 {[%clk 0:02:33.6]} 46... Rg6+
{[%clk 0:00:41.9]} 47. Kf3 {[%clk 0:02:30.4]} 47... Rh6 {[%clk 0:00:38.4]} 48.
Kg3 {[%clk 0:02:29.5]} 48... Rg6+ {[%clk 0:00:35.3]} 49. Kf3 {[%clk 0:02:27.1]}
49... Rh6 {[%clk 0:00:34.3]} 50. f5 {[%clk 0:02:26.5]} 50... Rf6 {[%clk
0:00:28.2]} 51. Kf4 {[%clk 0:02:25]} 51... Rh6 {[%clk 0:00:26.5]} 52. Kg5 {[%clk
0:02:19]} 52... Kg8 {[%clk 0:00:24]} 53. f4 {[%clk 0:02:11]} 53... Kh7 {[%clk
0:00:22.5]} 54. Rh2 {[%clk 0:02:07.8]} 54... Rd6 {[%clk 0:00:13.4]} 55. Rxh3+
{[%clk 0:02:05]} 55... Kg8 {[%clk 0:00:11.4]} 56. Rd3 {[%clk 0:02:00.9]} 56...
c5 {[%clk 0:00:09.3]} 57. d5 {[%clk 0:02:00.1]} 57... c4 {[%clk 0:00:06.9]} 58.
Rc3 {[%clk 0:01:58.7]} 58... Rxd5 {[%clk 0:00:05.5]} 59. Rxc4 {[%clk 0:01:57.9]}
59... Rd3 {[%clk 0:00:01.3]} 60. Rc6 {[%clk 0:01:55.4]} 60... Rg3+ {[%clk
0:00:00.3]} 61. Kh4 {[%clk 0:01:53.6]} 1-0

[Event "Live Chess"]
[Site "Chess.com"]
[Date "2024.06.02"]
[Round "-"]
[White "Harry_Li"]
[Black "KeithArkell"]
[Result "0-1"]
[WhiteElo "2079"]
[BlackElo "2425"]
[TimeControl "300"]
[EndTime "17:38:13 PDT"]
[Termination "KeithArkell won by resignation"]

1. d4 {[%clk 0:04:56.9]} 1... e6 {[%clk 0:04:58.9]} 2. c4 {[%clk 0:04:56]} 2...
Bb4+ {[%clk 0:04:58]} 3. Bd2 {[%clk 0:04:54.6]} 3... Bxd2+ {[%clk 0:04:57.1]} 4.
Qxd2 {[%clk 0:04:54.1]} 4... Nf6 {[%clk 0:04:56.8]} 5. Nc3 {[%clk 0:04:53.3]}
5... d6 {[%clk 0:04:56.7]} 6. e4 {[%clk 0:04:51.8]} 6... Qe7 {[%clk 0:04:55.7]}
7. Bd3 {[%clk 0:04:48.8]} 7... e5 {[%clk 0:04:55.1]} 8. d5 {[%clk 0:04:45.3]}
8... a5 {[%clk 0:04:53.7]} 9. Nge2 {[%clk 0:04:38.7]} 9... Bg4 {[%clk
0:04:52.5]} 10. f3 {[%clk 0:04:37.6]} 10... Bd7 {[%clk 0:04:50.5]} 11. O-O
{[%clk 0:04:36.8]} 11... Na6 {[%clk 0:04:50.1]} 12. Ng3 {[%clk 0:04:25.2]} 12...
Nc5 {[%clk 0:04:48.5]} 13. Bc2 {[%clk 0:04:23.8]} 13... O-O {[%clk 0:04:45.5]}
14. f4 {[%clk 0:04:13.8]} 14... exf4 {[%clk 0:04:43.8]} 15. Rxf4 {[%clk
0:04:07]} 15... Ng4 {[%clk 0:04:42.9]} 16. Re1 {[%clk 0:03:28.5]} 16... Ne5
{[%clk 0:04:37]} 17. b3 {[%clk 0:03:26.4]} 17... g6 {[%clk 0:04:36.1]} 18. Ref1
{[%clk 0:03:09.5]} 18... Qg5 {[%clk 0:04:29.2]} 19. Nce2 {[%clk 0:02:59.7]}
19... h5 {[%clk 0:04:21.6]} 20. h4 {[%clk 0:02:56.9]} 20... Qh6 {[%clk
0:04:20.9]} 21. Nd4 {[%clk 0:02:19.8]} 21... Bg4 {[%clk 0:04:16.6]} 22. Bd1
{[%clk 0:01:47.2]} 22... Bxd1 {[%clk 0:04:12.1]} 23. Qxd1 {[%clk 0:01:45.6]}
23... Ncd3 {[%clk 0:04:03.4]} 24. Ndf5 {[%clk 0:01:10.3]} 24... gxf5 {[%clk
0:04:02.2]} 25. Nxf5 {[%clk 0:01:08]} 25... Qh7 {[%clk 0:03:49.7]} 26. Ne7+
{[%clk 0:01:06.7]} 26... Kh8 {[%clk 0:03:48.4]} 27. Rf5 {[%clk 0:01:04.3]} 27...
Rae8 {[%clk 0:03:25.4]} 28. Rxh5 {[%clk 0:01:01.5]} 28... Rxe7 {[%clk
0:03:22.5]} 29. Rxh7+ {[%clk 0:01:00.6]} 29... Kxh7 {[%clk 0:03:22]} 30. Qh5+
{[%clk 0:00:59.8]} 30... Kg7 {[%clk 0:03:21.5]} 31. Qg5+ {[%clk 0:00:54.2]}
31... Ng6 {[%clk 0:03:20.8]} 32. h5 {[%clk 0:00:48.8]} 32... Ne5 {[%clk
0:03:17.6]} 33. hxg6 {[%clk 0:00:20.7]} 33... f6 {[%clk 0:03:17.1]} 34. Qf5
{[%clk 0:00:15.9]} 34... Nxg6 {[%clk 0:03:16.1]} 35. Kf2 {[%clk 0:00:14.3]}
35... Re5 {[%clk 0:03:14.9]} 36. Qf3 {[%clk 0:00:13.2]} 36... Rfe8 {[%clk
0:03:12]} 37. Re1 {[%clk 0:00:10.9]} 37... Rg5 {[%clk 0:03:09.2]} 38. g4 {[%clk
0:00:10.1]} 38... Ne5 {[%clk 0:03:08.2]} 39. Qf4 {[%clk 0:00:08.7]} 39... Nxg4+
{[%clk 0:03:07.1]} 40. Kf3 {[%clk 0:00:07.7]} 40... Ne5+ {[%clk 0:03:06.2]} 41.
Kf2 {[%clk 0:00:07.5]} 41... Rh8 {[%clk 0:03:05.3]} 42. Rg1 {[%clk 0:00:06.8]}
42... Nd3+ {[%clk 0:03:03.2]} 0-1

[Event "Live Chess"]
[Site "Chess.com"]
[Date "2024.06.02"]
[Round "-"]
[White "Sir_Sigmund"]
[Black "grillage"]
[Result "0-1"]
[WhiteElo "1864"]
[BlackElo "1855"]
[TimeControl "300"]
[EndTime "17:38:19 PDT"]
[Termination "grillage won by resignation"]

1. e4 {[%clk 0:04:58]} 1... d5 {[%clk 0:04:57]} 2. Nf3 {[%clk 0:04:51.8]} 2...
dxe4 {[%clk 0:04:55.2]} 3. Ng5 {[%clk 0:04:51.4]} 3... Bf5 {[%clk 0:04:53.5]} 4.
Nc3 {[%clk 0:04:47.8]} 4... Nf6 {[%clk 0:04:52.3]} 5. Bc4 {[%clk 0:04:35]} 5...
e6 {[%clk 0:04:50.3]} 6. O-O {[%clk 0:04:25.1]} 6... Nc6 {[%clk 0:04:45.2]} 7.
Bb5 {[%clk 0:04:10.5]} 7... Qd6 {[%clk 0:04:30.6]} 8. f3 {[%clk 0:04:04.6]} 8...
exf3 {[%clk 0:04:16.8]} 9. Nxf3 {[%clk 0:03:56.9]} 9... a6 {[%clk 0:04:13.4]}
10. Ba4 {[%clk 0:03:51.3]} 10... Be7 {[%clk 0:04:08.8]} 11. d3 {[%clk
0:03:48.1]} 11... O-O {[%clk 0:04:05.9]} 12. Qe1 {[%clk 0:03:34.3]} 12... b5
{[%clk 0:03:46.1]} 13. Bb3 {[%clk 0:03:30.6]} 13... Nd4 {[%clk 0:03:38.5]} 14.
Nxd4 {[%clk 0:03:20.5]} 14... Qxd4+ {[%clk 0:03:37.4]} 15. Be3 {[%clk
0:03:18.7]} 15... Qd6 {[%clk 0:03:28]} 16. Kh1 {[%clk 0:03:15.1]} 16... Ng4
{[%clk 0:03:21]} 17. Bg1 {[%clk 0:03:13.5]} 17... c5 {[%clk 0:03:11.5]} 18. a3
{[%clk 0:03:06.3]} 18... Bf6 {[%clk 0:03:04.5]} 19. Ne4 {[%clk 0:03:03.2]} 19...
Bxe4 {[%clk 0:03:01.1]} 20. Qxe4 {[%clk 0:03:03.1]} 20... h5 {[%clk 0:02:44.8]}
21. c3 {[%clk 0:03:01.1]} 21... Be5 {[%clk 0:02:36.6]} 22. g3 {[%clk 0:02:42.8]}
22... Rad8 {[%clk 0:02:31.5]} 23. Bc2 {[%clk 0:02:41.3]} 23... Nf6 {[%clk
0:02:24.5]} 24. Qh4 {[%clk 0:02:33.7]} 24... Qd5+ {[%clk 0:02:14]} 25. Qe4
{[%clk 0:02:21.8]} 25... Nxe4 {[%clk 0:02:12.3]} 26. dxe4 {[%clk 0:02:21.7]}
26... Qc6 {[%clk 0:02:05.6]} 27. Rf2 {[%clk 0:02:13.5]} 27... Rd7 {[%clk
0:02:01.8]} 28. Raf1 {[%clk 0:02:11.6]} 28... f6 {[%clk 0:01:57.2]} 29. Kg2
{[%clk 0:02:09.1]} 29... Rfd8 {[%clk 0:01:55.1]} 30. h4 {[%clk 0:02:07.9]} 30...
Rd2 {[%clk 0:01:53.2]} 31. Bb3 {[%clk 0:02:00.4]} 31... Rxf2+ {[%clk 0:01:48.5]}
32. Bxf2 {[%clk 0:01:58.6]} 32... c4 {[%clk 0:01:47.6]} 33. Bc2 {[%clk
0:01:57.1]} 33... Rd2 {[%clk 0:01:46.6]} 34. Rc1 {[%clk 0:01:53.4]} 34... Rxc2
{[%clk 0:01:44.6]} 35. Rxc2 {[%clk 0:01:52.2]} 35... Qxe4+ {[%clk 0:01:44.1]}
0-1

[Event "Live Chess"]
[Site "Chess.com"]
[Date "2024.06.02"]
[Round "-"]
[White "dmitro74"]
[Black "MaksymYurii"]
[Result "1-0"]
[WhiteElo "1698"]
[BlackElo "962"]
[TimeControl "300"]
[EndTime "17:38:25 PDT"]
[Termination "dmitro74 won by resignation"]

1. d4 {[%clk 0:04:57]} 1... d5 {[%clk 0:04:57.8]} 2. c4 {[%clk 0:04:56]} 2...
dxc4 {[%clk 0:04:55.5]} 3. Nc3 {[%clk 0:04:54]} 3... c6 {[%clk 0:04:49.7]} 4. e3
{[%clk 0:04:50.4]} 4... e6 {[%clk 0:04:46]} 5. Bxc4 {[%clk 0:04:48]} 5... Bb4
{[%clk 0:04:44.6]} 6. Ne2 {[%clk 0:04:41.3]} 6... Nf6 {[%clk 0:04:42.4]} 7. O-O
{[%clk 0:04:39.3]} 7... O-O {[%clk 0:04:38.3]} 8. a3 {[%clk 0:04:37.7]} 8...
Bxc3 {[%clk 0:04:32.9]} 9. bxc3 {[%clk 0:04:28.4]} 9... Re8 {[%clk 0:04:28.8]}
10. f4 {[%clk 0:04:23.3]} 10... Nbd7 {[%clk 0:04:21.5]} 11. Ng3 {[%clk
0:04:20.9]} 11... c5 {[%clk 0:04:20.1]} 12. Bb2 {[%clk 0:04:11.4]} 12... cxd4
{[%clk 0:04:14.3]} 13. cxd4 {[%clk 0:04:09.8]} 13... Nb6 {[%clk 0:04:06.7]} 14.
Ba2 {[%clk 0:04:03.1]} 14... e5 {[%clk 0:03:52.3]} 15. fxe5 {[%clk 0:03:58.6]}
15... Ng4 {[%clk 0:03:49.9]} 16. Bxf7+ {[%clk 0:03:50.9]} 16... Kh8 {[%clk
0:03:46]} 17. Bxe8 {[%clk 0:03:49.5]} 17... Qxe8 {[%clk 0:03:40.1]} 18. Qf3
{[%clk 0:03:47.4]} 18... Nh6 {[%clk 0:03:12.5]} 19. Qf8+ {[%clk 0:03:42.3]}
19... Qxf8 {[%clk 0:03:10.9]} 20. Rxf8+ {[%clk 0:03:41.3]} 20... Ng8 {[%clk
0:03:10]} 21. Rc1 {[%clk 0:03:18.8]} 21... Be6 {[%clk 0:03:07.4]} 22. Rxa8
{[%clk 0:03:16.4]} 22... Nxa8 {[%clk 0:03:04.7]} 23. e4 {[%clk 0:03:12.2]} 23...
Nb6 {[%clk 0:02:51.6]} 24. d5 {[%clk 0:03:09.4]} 24... Bg4 {[%clk 0:02:48.5]}
25. d6 {[%clk 0:03:02.4]} 25... h6 {[%clk 0:02:33.2]} 26. h3 {[%clk 0:02:54.3]}
26... Be6 {[%clk 0:02:29.7]} 27. Nf5 {[%clk 0:02:45.6]} 27... Nd7 {[%clk
0:02:22.5]} 28. Nd4 {[%clk 0:02:35.9]} 28... Bb3 {[%clk 0:01:49.2]} 29. Nxb3
{[%clk 0:02:31.5]} 1-0

[Event "Live Chess"]
[Site "Chess.com"]
[Date "2024.06.02"]
[Round "-"]
[White "CheckThis4"]
[Black "Dhaydon19"]
[Result "1-0"]
[WhiteElo "2706"]
[BlackElo "2677"]
[TimeControl "300"]
[EndTime "17:39:17 PDT"]
[Termination "CheckThis4 won by resignation"]

1. e4 {[%clk 0:04:53.9]} 1... e6 {[%clk 0:04:58.3]} 2. d4 {[%clk 0:04:50.8]}
2... d5 {[%clk 0:04:57.5]} 3. e5 {[%clk 0:04:49.4]} 3... c5 {[%clk 0:04:56.5]}
4. c3 {[%clk 0:04:48.3]} 4... Nc6 {[%clk 0:04:56.1]} 5. Nf3 {[%clk 0:04:47.3]}
5... Nge7 {[%clk 0:04:55.5]} 6. Na3 {[%clk 0:04:27.1]} 6... a6 {[%clk
0:04:53.3]} 7. Nc2 {[%clk 0:04:25.3]} 7... Nf5 {[%clk 0:04:51.9]} 8. Bd3 {[%clk
0:04:20.9]} 8... cxd4 {[%clk 0:04:50.2]} 9. cxd4 {[%clk 0:04:19.5]} 9... Be7
{[%clk 0:04:49.1]} 10. O-O {[%clk 0:04:12.6]} 10... h5 {[%clk 0:04:46.6]} 11.
Bd2 {[%clk 0:04:04]} 11... g5 {[%clk 0:04:44.7]} 12. Bc3 {[%clk 0:03:54.3]}
12... g4 {[%clk 0:04:41.6]} 13. Nfe1 {[%clk 0:03:36.5]} 13... Bg5 {[%clk
0:04:37.8]} 14. Qe2 {[%clk 0:03:27.3]} 14... Rg8 {[%clk 0:04:35.2]} 15. Rd1
{[%clk 0:03:15.5]} 15... Bd7 {[%clk 0:04:34.3]} 16. f4 {[%clk 0:02:52.5]} 16...
gxf3 {[%clk 0:04:25.5]} 17. Nxf3 {[%clk 0:02:48.7]} 17... Be7 {[%clk 0:04:18.4]}
18. Ne3 {[%clk 0:02:39.6]} 18... Nh6 {[%clk 0:04:15.9]} 19. h3 {[%clk
0:02:29.8]} 19... Qb6 {[%clk 0:04:13.1]} 20. a3 {[%clk 0:02:16.6]} 20... O-O-O
{[%clk 0:04:10.5]} 21. Kh2 {[%clk 0:02:14.5]} 21... f6 {[%clk 0:03:57.9]} 22. b4
{[%clk 0:01:50]} 22... fxe5 {[%clk 0:03:48.9]} 23. Nxe5 {[%clk 0:01:44.5]} 23...
Nxe5 {[%clk 0:03:48.1]} 24. dxe5 {[%clk 0:01:44.4]} 24... Be8 {[%clk 0:03:37.2]}
25. Bh7 {[%clk 0:01:40.9]} 25... Rg7 {[%clk 0:03:30.7]} 26. Bd4 {[%clk
0:01:39.8]} 26... Qb5 {[%clk 0:03:28.7]} 27. Bd3 {[%clk 0:01:37.8]} 27... Qa4
{[%clk 0:03:23.5]} 28. Rc1+ {[%clk 0:01:35.9]} 28... Kb8 {[%clk 0:03:22.6]} 29.
Rc3 {[%clk 0:01:32.5]} 29... Bb5 {[%clk 0:03:17.5]} 30. Rfc1 {[%clk 0:01:26.8]}
30... Bxd3 {[%clk 0:03:15.2]} 31. Qxd3 {[%clk 0:01:25.3]} 31... Bg5 {[%clk
0:03:12.7]} 32. Bb6 {[%clk 0:01:18.9]} 32... Rdg8 {[%clk 0:03:08.6]} 33. R1c2
{[%clk 0:01:08.3]} 33... Bf4+ {[%clk 0:03:06]} 34. Kh1 {[%clk 0:01:06.7]} 34...
Bxe5 {[%clk 0:03:04]} 35. Bd4 {[%clk 0:00:59.5]} 35... Bxd4 {[%clk 0:03:01.6]}
36. Qxd4 {[%clk 0:00:59.4]} 36... Qd7 {[%clk 0:02:57.9]} 37. Qe5+ {[%clk
0:00:58.2]} 37... Ka7 {[%clk 0:02:46.2]} 38. Rc7 {[%clk 0:00:57.2]} 38... Qa4
{[%clk 0:02:44]} 39. Qd4+ {[%clk 0:00:55.9]} 39... Kb8 {[%clk 0:02:35.2]} 40.
Qb6 {[%clk 0:00:54.6]} 40... Qb5 {[%clk 0:02:18.5]} 41. Qd6 {[%clk 0:00:51.4]}
41... Rxc7 {[%clk 0:02:13.9]} 42. Rxc7 {[%clk 0:00:47.5]} 42... Ka8 {[%clk
0:02:12.8]} 43. Qxe6 {[%clk 0:00:43.7]} 43... Qb6 {[%clk 0:02:02.3]} 44. Qxb6
{[%clk 0:00:41.3]} 1-0

[Event "Live Chess"]
[Site "Chess.com"]
[Date "2024.06.02"]
[Round "-"]
[White "Queensandpawns"]
[Black "PaulyD81"]
[Result "1-0"]
[WhiteElo "2311"]
[BlackElo "980"]
[TimeControl "300"]
[EndTime "17:39:19 PDT"]
[Termination "Queensandpawns won by resignation"]

1. e4 {[%clk 0:04:59.7]} 1... c5 {[%clk 0:04:56.5]} 2. Bc4 {[%clk 0:04:58.3]}
2... d6 {[%clk 0:04:40.6]} 3. Qf3 {[%clk 0:04:55]} 3... Nf6 {[%clk 0:04:35.5]}
4. Qb3 {[%clk 0:04:54.6]} 4... e6 {[%clk 0:04:20.7]} 5. d3 {[%clk 0:04:53.6]}
5... Nbd7 {[%clk 0:04:09.8]} 6. Bd2 {[%clk 0:04:51.6]} 6... Qb6 {[%clk 0:04:05]}
7. a4 {[%clk 0:04:50.3]} 7... Qxb3 {[%clk 0:04:03.4]} 8. Bxb3 {[%clk 0:04:50.2]}
8... a6 {[%clk 0:03:46.3]} 9. Nc3 {[%clk 0:04:49.7]} 9... a5 {[%clk 0:03:34.9]}
10. Nb5 {[%clk 0:04:48.6]} 10... Rb8 {[%clk 0:03:19.9]} 11. Bxa5 {[%clk
0:04:46.9]} 11... b6 {[%clk 0:03:08.2]} 12. Bc3 {[%clk 0:04:45.6]} 12... Bb7
{[%clk 0:03:06.6]} 13. Nf3 {[%clk 0:04:43.9]} 13... Be7 {[%clk 0:02:51.3]} 14.
O-O {[%clk 0:04:43.8]} 14... O-O {[%clk 0:02:50.2]} 15. d4 {[%clk 0:04:42.1]}
15... cxd4 {[%clk 0:02:42.4]} 16. Nfxd4 {[%clk 0:04:42]} 16... d5 {[%clk
0:02:33.3]} 17. exd5 {[%clk 0:04:39.2]} 17... Nxd5 {[%clk 0:02:31.9]} 18. Bd2
{[%clk 0:04:37.9]} 18... Nc5 {[%clk 0:02:09]} 19. Bc4 {[%clk 0:04:33.5]} 19...
Ra8 {[%clk 0:01:50.7]} 20. b3 {[%clk 0:04:29.4]} 20... Ne4 {[%clk 0:01:31.6]}
21. Be1 {[%clk 0:04:22.3]} 21... Ndc3 {[%clk 0:01:22.1]} 22. Nxc3 {[%clk
0:04:20.5]} 22... Bb4 {[%clk 0:01:01.2]} 23. Ndb5 {[%clk 0:04:19]} 23... Ba6
{[%clk 0:00:50.8]} 24. Nxe4 {[%clk 0:04:16.1]} 24... Bxe1 {[%clk 0:00:46.5]} 25.
Raxe1 {[%clk 0:04:16]} 25... Bxb5 {[%clk 0:00:43.6]} 26. Bxb5 {[%clk 0:04:15.9]}
1-0

[Event "Live Chess"]
[Site "Chess.com"]
[Date "2024.06.02"]
[Round "-"]
[White "nigelst"]
[Black "Crowded_House"]
[Result "1/2-1/2"]
[WhiteElo "1716"]
[BlackElo "1724"]
[TimeControl "300"]
[EndTime "17:39:21 PDT"]
[Termination "Game drawn - insufficient material"]

1. e4 {[%clk 0:04:57.7]} 1... e6 {[%clk 0:04:59.2]} 2. d4 {[%clk 0:04:55.9]}
2... d5 {[%clk 0:04:58.8]} 3. exd5 {[%clk 0:04:55.1]} 3... exd5 {[%clk 0:04:58]}
4. Nf3 {[%clk 0:04:54]} 4... Bd6 {[%clk 0:04:56.2]} 5. c4 {[%clk 0:04:50.4]}
5... c6 {[%clk 0:04:53]} 6. c5 {[%clk 0:04:49.3]} 6... Bc7 {[%clk 0:04:51.6]} 7.
Bd3 {[%clk 0:04:47.6]} 7... Ne7 {[%clk 0:04:48.9]} 8. O-O {[%clk 0:04:46.4]}
8... O-O {[%clk 0:04:47.2]} 9. Re1 {[%clk 0:04:41.9]} 9... h6 {[%clk 0:04:34.1]}
10. b4 {[%clk 0:04:40.7]} 10... a6 {[%clk 0:04:31.5]} 11. a4 {[%clk 0:04:38.7]}
11... Bf5 {[%clk 0:04:28.3]} 12. Qc2 {[%clk 0:04:35.1]} 12... Bxd3 {[%clk
0:04:25.8]} 13. Qxd3 {[%clk 0:04:33.7]} 13... Ng6 {[%clk 0:04:18.7]} 14. Nc3
{[%clk 0:04:28.7]} 14... Nd7 {[%clk 0:04:15.2]} 15. Be3 {[%clk 0:04:19.1]} 15...
Nf6 {[%clk 0:04:12.3]} 16. b5 {[%clk 0:04:15.2]} 16... axb5 {[%clk 0:04:06.1]}
17. axb5 {[%clk 0:04:13.5]} 17... Qd7 {[%clk 0:04:01.3]} 18. bxc6 {[%clk
0:04:07.4]} 18... bxc6 {[%clk 0:03:59.8]} 19. Reb1 {[%clk 0:04:03.4]} 19... Rxa1
{[%clk 0:03:48.6]} 20. Rxa1 {[%clk 0:04:01.2]} 20... Rb8 {[%clk 0:03:39.3]} 21.
Rb1 {[%clk 0:03:59.3]} 21... Qc8 {[%clk 0:03:35.8]} 22. g3 {[%clk 0:03:50.3]}
22... Rb7 {[%clk 0:03:33.8]} 23. Rxb7 {[%clk 0:03:47.4]} 23... Qxb7 {[%clk
0:03:32.6]} 24. Kg2 {[%clk 0:03:35.4]} 24... Qb3 {[%clk 0:03:30.5]} 25. Nd2
{[%clk 0:03:07.5]} 25... Qa3 {[%clk 0:03:21.7]} 26. Qc2 {[%clk 0:03:05.5]} 26...
Ba5 {[%clk 0:03:10.2]} 27. Ne2 {[%clk 0:03:02.3]} 27... Bxd2 {[%clk 0:03:01.3]}
28. Bxd2 {[%clk 0:02:56.3]} 28... Ne4 {[%clk 0:02:56.4]} 29. f3 {[%clk
0:02:50.7]} 29... Nxd2 {[%clk 0:02:54.1]} 30. Qxd2 {[%clk 0:02:49.8]} 30... Qa4
{[%clk 0:02:45.5]} 31. Kf2 {[%clk 0:02:45.8]} 31... Qb5 {[%clk 0:02:40]} 32. Nc3
{[%clk 0:02:43.1]} 32... Qc4 {[%clk 0:02:36.9]} 33. Nd1 {[%clk 0:02:36.7]} 33...
Ne7 {[%clk 0:02:31.3]} 34. Ne3 {[%clk 0:02:35.5]} 34... Qb5 {[%clk 0:02:27.2]}
35. Ng4 {[%clk 0:02:26.7]} 35... Nf5 {[%clk 0:02:21.7]} 36. Ne5 {[%clk
0:02:20.1]} 36... Qa4 {[%clk 0:02:13]} 37. Qf4 {[%clk 0:01:27]} 37... Qxd4+
{[%clk 0:02:06.5]} 38. Qxd4 {[%clk 0:01:20.1]} 38... Nxd4 {[%clk 0:02:05.2]} 39.
Ke3 {[%clk 0:01:19]} 39... Nb3 {[%clk 0:02:00]} 40. Nxc6 {[%clk 0:01:15.3]}
40... Nxc5 {[%clk 0:01:59.2]} 41. Kd4 {[%clk 0:01:14.3]} 41... Ne6+ {[%clk
0:01:55.8]} 42. Ke5 {[%clk 0:01:10.8]} 42... Kf8 {[%clk 0:01:44.7]} 43. f4
{[%clk 0:01:02]} 43... g6 {[%clk 0:01:41]} 44. Kxd5 {[%clk 0:01:00.3]} 44...
Nc7+ {[%clk 0:01:38]} 45. Kd6 {[%clk 0:00:58.8]} 45... Nb5+ {[%clk 0:01:37.1]}
46. Kd7 {[%clk 0:00:57.8]} 46... Nc3 {[%clk 0:01:34.6]} 47. Ne5 {[%clk 0:00:56]}
47... Ne4 {[%clk 0:01:19.2]} 48. Ng4 {[%clk 0:00:46.8]} 48... h5 {[%clk
0:01:16.5]} 49. Ne5 {[%clk 0:00:44.4]} 49... Nd2 {[%clk 0:01:12.3]} 50. h3
{[%clk 0:00:40.1]} 50... Nf1 {[%clk 0:01:09.7]} 51. g4 {[%clk 0:00:38.4]} 51...
hxg4 {[%clk 0:01:08.7]} 52. hxg4 {[%clk 0:00:37.3]} 52... Ne3 {[%clk 0:01:06.3]}
53. f5 {[%clk 0:00:34]} 53... gxf5 {[%clk 0:01:04.6]} 54. gxf5 {[%clk 0:00:33]}
54... Nxf5 {[%clk 0:01:03.9]} 55. Nxf7 {[%clk 0:00:31.8]} 1/2-1/2